bitfinex/quotes_BTCUSD_20260117
["timestamp","ask_amount","ask_price","bid_price","bid_amount"]
[1768646758721,0.04578269,95068.0,95065.0,0.01051911]
[1768646759148,0.04578269,95068.0,95065.0,0.06311469]
[1768646759594,0.04578269,95068.0,95066.0,0.05259487]
[1768646760391,0.04578269,95068.0,95065.0,0.06311366]
[1768646760621,0.04578269,95068.0,95066.0,0.05259503]
[1768646761039,0.04578269,95071.0,95068.0,0.01051878]
[1768646761416,0.05630114,95071.0,95066.0,0.010519]
[1768646762343,0.06311087,95071.0,95066.0,0.010519]
[1768646762491,0.04578269,95065.0,95061.0,0.01064394]
[1768646762688,0.04578269,95065.0,95058.0,0.12820589]
[1768646762689,0.04578269,95065.0,95058.0,0.01051989]
[1768646762897,0.04578269,95063.0,95060.0,0.01051967]
[1768646763096,0.04569187,95063.0,95060.0,0.01051967]
[1768646763321,0.04569187,95063.0,95059.0,0.01051978]
[1768646764014,0.0562112,95063.0,95059.0,0.01051978]
[1768646764216,0.04569187,95063.0,95060.0,0.01051967]
[1768646766609,0.04560105,95063.0,95060.0,0.01051967]
[1768646766934,0.04560105,95063.0,95061.0,0.05259764]
[1768646767298,0.04560105,95063.0,95060.0,0.01051967]
[1768646768592,0.05612038,95063.0,95054.0,0.06334923]
[1768646768790,0.05612038,95063.0,95055.0,0.01052022]
[1768646768962,0.05612038,95063.0,95056.0,0.06312022]
[1768646769539,0.10871717,95063.0,95056.0,0.06312022]
[1768646770319,0.01051945,95062.0,95058.0,0.01051989]
[1768646772217,0.01051922,95064.0,95059.0,0.01051978]
[1768646772551,0.05259555,95066.0,95060.0,0.01051967]
[1768646772748,0.01051911,95065.0,95061.0,0.01051956]
[1768646773108,0.010519,95066.0,95061.0,0.01051956]
[1768646774673,0.01051911,95065.0,95061.0,0.01051956]
[1768646775065,0.04560105,95064.0,95061.0,0.01051956]
[1768646777222,0.04560105,95064.0,95061.0,0.06311732]
[1768646778081,0.12744,95070.0,95061.0,0.06311732]
[1768646778082,0.01051812,95074.0,95065.0,0.01051911]
[1768646778291,0.01051812,95074.0,95070.0,0.01051856]
[1768646779699,0.01051812,95074.0,95069.0,0.01051867]
[1768646779903,0.13795801,95075.0,95070.0,0.01051856]
[1768646780112,0.01051812,95074.0,95070.0,0.01051856]
[1768646780321,0.01051823,95073.0,95068.0,0.01051878]
[1768646781772,0.01051823,95073.0,95069.0,0.01051867]
[1768646781971,0.01051834,95072.0,95068.0,0.01051878]
[1768646782988,0.01051823,95073.0,95069.0,0.01051867]
[1768646784373,0.01051834,95072.0,95068.0,0.01051878]
[1768646784706,0.01051834,95072.0,95068.0,0.01708457]
[1768646785956,0.01051845,95071.0,95068.0,0.00656579]
[1768646790616,0.0631108,95071.0,95068.0,0.00656579]
[1768646790821,0.01051889,95067.0,95063.0,0.13795933]
[1768646791021,0.00505257,95067.0,95063.0,0.13795933]
[1768646791447,0.01051867,95069.0,95064.0,0.01051922]
[1768646792630,0.01051878,95068.0,95064.0,0.01051922]
[1768646794091,0.01051878,95068.0,95063.0,0.13795933]
[1768646794544,0.01051878,95068.0,95064.0,0.01051922]
[1768646796182,0.010519,95066.0,95063.0,0.12744]
[1768646796398,0.01051922,95064.0,95061.0,0.12744]
[1768646796790,0.01051911,95065.0,95061.0,0.12744]
[1768646796992,0.010519,95066.0,95062.0,0.01051945]
[1768646797484,0.01051889,95067.0,95062.0,0.01051945]
[1768646798184,0.01051889,95067.0,95062.0,0.06311658]
[1768646798529,0.01051878,95068.0,95064.0,0.01051922]
[1768646798772,0.01051889,95067.0,95063.0,0.01051933]
[1768646800237,0.010519,95066.0,95062.0,0.01051945]
[1768646801906,0.01051911,95065.0,95061.0,0.12744]
[1768646802113,0.05861749,95065.0,95061.0,0.12744]
[1768646802315,0.01051911,95065.0,95061.0,0.12744]
[1768646802675,0.01051911,95065.0,95060.0,0.01051967]
[1768646802875,0.01051911,95065.0,95060.0,0.13795967]
[1768646803428,0.01051933,95063.0,95060.0,0.12744]
[1768646803633,0.00517003,95063.0,95060.0,0.12744]
[1768646803835,0.05776681,95063.0,95060.0,0.12744]
[1768646804960,0.01051945,95062.0,95060.0,0.12744]
[1768646805573,0.01051945,95062.0,95060.0,0.12724417]
[1768646807353,0.06311699,95062.0,95060.0,0.12724417]
[1768646808562,0.01051922,95064.0,95060.0,0.12724417]
[1768646808766,0.04809838,95063.0,95059.0,0.12744]
[1768646808971,0.04809838,95063.0,95059.0,0.1273946]
[1768646809172,0.06311562,95064.0,95059.0,0.1273946]
[1768646809386,0.01051933,95063.0,95059.0,0.13791438]
[1768646809818,0.01051922,95064.0,95060.0,0.01051967]
[1768646810030,0.01051911,95065.0,95060.0,0.01051967]
[1768646810381,0.01051922,95064.0,95060.0,0.01051967]
[1768646810809,0.04809838,95066.0,95061.0,0.01051956]
[1768646811049,0.05861738,95066.0,95062.0,0.01051945]
[1768646811684,0.04809838,95066.0,95063.0,0.01051933]
[1768646812085,0.010519,95066.0,95062.0,0.01051945]
[1768646812969,0.01051933,95063.0,95059.0,0.13791438]
[1768646813213,0.05138219,95063.0,95059.0,0.1273946]
[1768646814070,0.00528596,95063.0,95059.0,0.1273946]
[1768646814283,0.01051945,95062.0,95059.0,0.1273946]
[1768646814561,0.01051945,95062.0,95019.0,0.05753555]
[1768646814801,0.01052011,95056.0,95051.0,0.01052066]
[1768646815868,0.01052022,95055.0,95051.0,0.01052066]
[1768646819036,0.01052033,95054.0,95049.0,0.01052088]
[1768646819259,0.01052022,95055.0,95051.0,0.01052066]
[1768646821614,0.01052011,95056.0,95052.0,0.01052055]
[1768646821985,0.01052,95057.0,95052.0,0.01052055]
[1768646822210,0.01051989,95058.0,95053.0,0.01052044]
[1768646822623,0.01052,95057.0,95053.0,0.01052044]
[1768646823266,0.01052011,95056.0,95051.0,0.01052066]
[1768646824018,0.01052011,95056.0,95052.0,0.01052055]
[1768646824667,0.01052022,95055.0,95051.0,0.01052066]
[1768646826464,0.05661656,95054.0,95049.0,0.01052088]
[1768646826910,0.04609623,95053.0,95050.0,0.01052077]
[1768646828525,0.05661645,95055.0,95050.0,0.01052077]
[1768646828756,0.05661645,95055.0,95051.0,0.01052066]
[1768646829078,0.05661645,95055.0,95050.0,0.01052077]
[1768646830023,0.05661645,95055.0,95050.0,0.06312433]
[1768646830024,0.04609623,95055.0,95050.0,0.06312433]
[1768646830520,0.04609623,95055.0,95052.0,0.01052055]
[1768646831842,0.04609623,95055.0,95052.0,0.06312326]
[1768646832479,0.04609623,95055.0,95052.0,0.06312299]
[1768646832697,1.39915966,97100.0,95048.0,0.00037543]
[1768646832698,0.04609623,95086.0,95053.0,0.0455169]
[1768646832913,0.12744,95080.0,95074.0,0.01051812]
[1768646833120,0.12744,95080.0,95062.0,0.0455169]
[1768646833121,0.12744,95079.0,95073.0,0.01051823]
[1768646833326,0.13795756,95079.0,95074.0,0.01051812]
[1768646833542,0.01051756,95079.0,95074.0,0.01051812]
[1768646833757,0.12744,95078.0,95073.0,0.01051823]
[1768646833972,0.01051779,95077.0,95073.0,0.01051823]
[1768646834676,0.01051779,95077.0,95071.0,0.01051845]
[1768646834874,0.01051801,95075.0,95071.0,0.01051845]
[1768646835577,0.0105179,95076.0,95072.0,0.01051834]
[1768646837369,0.01051779,95077.0,95072.0,0.01051834]
[1768646837737,0.0105179,95076.0,95072.0,0.01051834]
[1768646838593,0.01051801,95075.0,95071.0,0.01051845]
[1768646838804,0.01051801,95075.0,95070.0,0.01051856]
[1768646839017,0.01051801,95075.0,95071.0,0.01051845]
[1768646840261,0.04609623,95072.0,95061.0,0.01051956]
[1768646840436,0.010519,95066.0,95061.0,0.01051956]
[1768646840651,0.010519,95066.0,95062.0,0.01051945]
[1768646840854,0.00573683,95066.0,95062.0,0.01051945]
[1768646842363,0.01051889,95067.0,95062.0,0.01051945]
[1768646843853,0.010519,95066.0,95061.0,0.01051956]
[1768646844207,0.01012704,95066.0,95062.0,0.01051945]
[1768646845446,0.01051911,95065.0,95061.0,0.01051956]
[1768646848096,0.01012704,95066.0,95062.0,0.01051945]
[1768646848231,0.01003624,95066.0,95062.0,0.01051945]
[1768646848444,0.01051889,95067.0,95063.0,0.01051933]
[1768646848854,0.010519,95066.0,95062.0,0.01051945]
[1768646850329,0.01051911,95065.0,95061.0,0.01051956]
[1768646850615,0.0104283,95065.0,95061.0,0.01051956]
[1768646851930,0.01051922,95064.0,95059.0,0.01051978]
[1768646852128,0.01033749,95065.0,95058.0,0.01051989]
[1768646852400,0.05701237,95062.0,95055.0,0.01052022]
[1768646852611,0.00914329,95061.0,95056.0,0.01052011]
[1768646852819,0.00914329,95061.0,95057.0,0.01052]
[1768646853270,0.01051945,95062.0,95058.0,0.01051989]
[1768646853479,0.01051933,95063.0,95058.0,0.01051989]
[1768646853686,0.01051933,95063.0,95059.0,0.01051978]
[1768646854095,0.01051945,95062.0,95058.0,0.01051989]
[1768646856169,0.01051945,95062.0,95057.0,0.01052]
[1768646857157,0.01051956,95061.0,95057.0,0.01052]
[1768646858218,0.01051945,95062.0,95057.0,0.01052]
[1768646858923,0.01051933,95063.0,95058.0,0.01051989]
[1768646859576,0.01042852,95063.0,95059.0,0.01051978]
[1768646859783,0.01051945,95062.0,95058.0,0.01051989]
[1768646860454,0.01042852,95063.0,95059.0,0.01051978]
[1768646862013,0.01051922,95064.0,95059.0,0.01051978]
[1768646863519,0.01051922,95064.0,95060.0,0.01051967]
[1768646863757,0.01051933,95063.0,95058.0,0.01051989]
[1768646863957,0.01051956,95061.0,95057.0,0.01052]
[1768646864869,0.01051945,95062.0,95057.0,0.01052]
[1768646865738,0.01051945,95062.0,95058.0,0.01051989]
[1768646865944,0.01042864,95062.0,95058.0,0.01051989]
[1768646866634,0.01042864,95062.0,95057.0,0.01052]
[1768646867713,0.01042864,95062.0,95058.0,0.01051989]
[1768646868764,0.01051922,95064.0,95060.0,0.01051967]
[1768646868972,0.0104284,95064.0,95060.0,0.01051967]
[1768646869378,0.01051933,95063.0,95059.0,0.01051978]
[1768646870237,0.0104284,95064.0,95059.0,0.01051978]
[1768646871317,0.01051933,95063.0,95059.0,0.01051978]
[1768646871653,0.0104284,95064.0,95060.0,0.01051967]
[1768646871863,0.01051889,95067.0,95061.0,0.01051956]
[1768646872585,0.01051878,95068.0,95062.0,0.01051945]
[1768646872794,0.01051878,95068.0,95062.0,0.06311658]
[1768646873182,0.01051878,95068.0,95063.0,0.01051933]
[1768646874025,0.01051878,95068.0,95064.0,0.01051922]
[1768646875221,0.12744,95069.0,95065.0,0.01051911]
[1768646875434,0.13795867,95069.0,95063.0,0.01051933]
[1768646876299,0.01051878,95068.0,95064.0,0.01051922]
[1768646880187,0.01051878,95068.0,95063.0,0.01051933]
[1768646880630,0.13795867,95069.0,95064.0,0.01051922]
[1768646881831,0.01051878,95068.0,95063.0,0.01051933]
[1768646883428,0.01051889,95067.0,95061.0,0.01051956]
[1768646883824,0.010519,95066.0,95062.0,0.01051945]
[1768646884038,0.01051889,95067.0,95063.0,0.01051933]
[1768646884785,0.010519,95066.0,95062.0,0.01051945]
[1768646885013,0.01051889,95067.0,95063.0,0.01051933]
[1768646885444,0.01051889,95067.0,95062.0,0.01051945]
[1768646885445,0.06311403,95066.0,95061.0,0.01051956]
[1768646885606,0.010519,95066.0,95061.0,0.01051956]
[1768646886210,0.010519,95066.0,95062.0,0.01051945]
[1768646886415,0.01051889,95067.0,95063.0,0.01051933]
[1768646887507,0.01051889,95067.0,95062.0,0.01051945]
[1768646888111,0.010519,95066.0,95061.0,0.01051956]
[1768646888317,0.01051911,95065.0,95061.0,0.01051956]
[1768646888513,0.06311413,95066.0,95061.0,0.01051956]
[1768646888514,0.010519,95066.0,95062.0,0.01051945]
[1768646888738,0.01051911,95065.0,95061.0,0.01051956]
[1768646889192,0.010519,95066.0,95062.0,0.01051945]
[1768646889731,0.06311417,95066.0,95061.0,0.01051956]
[1768646889943,0.01051911,95065.0,95061.0,0.01051956]
[1768646890142,0.010519,95066.0,95062.0,0.01051945]
[1768646890421,0.01051889,95067.0,95062.0,0.01051945]
[1768646890817,0.01051889,95067.0,95063.0,0.01051933]
[1768646891685,0.010519,95066.0,95062.0,0.01051945]
[1768646892484,0.01051889,95067.0,95062.0,0.01051945]
[1768646893500,0.010519,95066.0,95061.0,0.01051956]
[1768646893883,0.010519,95066.0,95062.0,0.01051945]
[1768646894077,0.01051889,95067.0,95063.0,0.01051933]
[1768646894673,0.01051878,95068.0,95064.0,0.01051922]
[1768646895110,0.13795867,95069.0,95064.0,0.01051922]
[1768646895734,0.13795867,95069.0,95065.0,0.01051911]
[1768646897465,0.12744,95069.0,95066.0,0.010519]
[1768646898133,0.12744,95069.0,95065.0,0.01051911]
[1768646898333,0.13795867,95069.0,95065.0,0.01051911]
[1768646898563,0.01051878,95068.0,95064.0,0.01051922]
[1768646899634,0.13795867,95069.0,95065.0,0.01051911]
[1768646899970,0.13795867,95069.0,95064.0,0.01051922]
[1768646900207,0.01051878,95068.0,95064.0,0.01051922]
[1768646901023,0.12744,95069.0,95066.0,0.010519]
[1768646902003,0.12744,95069.0,95063.0,0.01051933]
[1768646902204,0.12744,95069.0,95063.0,0.06311595]
[1768646902412,0.01051878,95068.0,95064.0,0.01051922]
[1768646902822,0.01051878,95068.0,95063.0,0.01051933]
[1768646903214,0.01051889,95067.0,95063.0,0.01051933]
[1768646903414,0.01051878,95068.0,95063.0,0.01051933]
[1768646904949,0.19055215,95069.0,95065.0,0.01051911]
[1768646904950,0.13795867,95069.0,95065.0,0.01051911]
[1768646905158,0.13795867,95069.0,95063.0,0.01051933]
[1768646905340,0.13795867,95069.0,95063.0,0.06311601]
[1768646906266,0.01051878,95068.0,95064.0,0.01051922]
[1768646906474,0.12744,95069.0,95065.0,0.01051911]
[1768646906677,0.12744,95069.0,95066.0,0.010519]
[1768646907601,0.12744,95069.0,95067.0,0.05259408]
[1768646907787,0.12744,95069.0,95068.0,0.05259393]
[1768646912033,0.12744,95069.0,95064.0,0.01810369]
[1768646912377,0.12744,95069.0,95066.0,0.010519]
[1768646913593,0.13795867,95069.0,95065.0,0.01051911]
[1768646914166,0.12744,95069.0,95066.0,0.06311356]
[1768646914397,0.12744,95069.0,95066.0,0.010519]
[1768646914818,0.12744,95069.0,95066.0,0.00873317]
[1768646915217,0.12744,95069.0,95066.0,0.06132819]
[1768646915622,0.12744,95069.0,95067.0,0.05259441]
[1768646916032,0.12744,95069.0,95067.0,0.05239841]
[1768646916526,0.12744,95069.0,95067.0,0.05220243]
[1768646917090,0.12744,95069.0,95067.0,0.05200653]
[1768646918272,0.12744,95069.0,95066.0,0.00873317]
[1768646918273,0.12744,95069.0,95068.0,0.05259393]
[1768646919653,0.12734918,95069.0,95068.0,0.05259393]
[1768646922044,0.12725835,95069.0,95068.0,0.05259393]
[1768646929400,0.12725835,95069.0,95067.0,0.05259446]
[1768646930088,0.13777702,95069.0,95065.0,0.01051911]
[1768646930989,0.01051878,95068.0,95064.0,0.01051922]
[1768646932339,0.13777702,95069.0,95064.0,0.01051922]
[1768646933285,0.01051878,95068.0,95064.0,0.01051922]
[1768646933484,0.00499444,95068.0,95064.0,0.01051922]
[1768646934573,0.13777702,95069.0,95064.0,0.01051922]
[1768646934958,0.01051878,95068.0,95064.0,0.01051922]
[1768646935855,0.13777702,95069.0,95065.0,0.01051911]
[1768646939572,0.12725835,95069.0,95065.0,0.01051911]
[1768646941026,0.13777702,95069.0,95065.0,0.01051911]
[1768646941443,0.01051878,95068.0,95063.0,0.01708627]
[1768646941664,0.00510194,95068.0,95064.0,0.01051922]
[1768646941886,0.00510194,95068.0,95063.0,0.01708627]
[1768646942740,0.00510194,95068.0,95064.0,0.01051922]
[1768646943554,0.13777702,95069.0,95065.0,0.01051911]
[1768646943959,0.01051867,95069.0,95065.0,0.01051911]
[1768646944533,0.01051867,95069.0,95064.0,0.01051922]
[1768646946013,0.01051878,95068.0,95063.0,0.01051933]
[1768646947771,0.01051889,95067.0,95063.0,0.01051933]
[1768646949649,0.04970756,95068.0,95063.0,0.01051933]
[1768646950267,0.01051889,95067.0,95063.0,0.01051933]
[1768646950589,0.01051878,95068.0,95063.0,0.01051933]
[1768646950794,0.01051878,95068.0,95064.0,0.01051922]
[1768646951483,0.25487635,95074.0,95054.0,0.12744]
[1768646951688,0.01051956,95061.0,95057.0,0.01052]
[1768646951906,0.01051945,95062.0,95061.0,0.00186458]
[1768646952108,0.06311671,95062.0,95061.0,0.00186458]
[1768646959272,0.01051956,95061.0,95057.0,0.00764602]
[1768646959487,0.04668617,95061.0,95056.0,0.01052011]
[1768646959912,0.01051945,95062.0,95057.0,0.01052]
[1768646960330,0.01051956,95061.0,95057.0,0.01052]
[1768646960552,0.00777162,95061.0,95057.0,0.01052]
[1768646961202,0.00777162,95061.0,95057.0,0.01032486]
[1768646961411,0.01051945,95062.0,95057.0,0.01032486]
[1768646961618,0.01051945,95062.0,95058.0,0.01051989]
[1768646962044,0.01051945,95062.0,95058.0,0.01032494]
[1768646962483,0.01051945,95062.0,95058.0,0.01013001]
[1768646962693,0.01051956,95061.0,95057.0,0.0087793]
[1768646963536,0.01051945,95062.0,95057.0,0.0087793]
[1768646964606,0.01051945,95062.0,95058.0,0.01051989]
[1768646965460,0.01051922,95064.0,95058.0,0.01051989]
[1768646965895,0.01051922,95064.0,95060.0,0.01051967]
[1768646966595,0.01051911,95065.0,95060.0,0.01051967]
[1768646967004,0.010519,95066.0,95061.0,0.01051956]
[1768646967216,0.010519,95066.0,95062.0,0.01051945]
[1768646967438,0.01051889,95067.0,95063.0,0.01051933]
[1768646967886,0.01051878,95068.0,95064.0,0.01051922]
[1768646968324,0.01051878,95068.0,95063.0,0.01051933]
[1768646968534,0.01051889,95067.0,95062.0,0.01051945]
[1768646968755,0.010519,95066.0,95062.0,0.01051945]
[1768646969433,0.01051878,95068.0,95063.0,0.01051933]
[1768646969662,0.01051878,95068.0,95062.0,0.01051945]
[1768646969890,0.01051878,95068.0,95063.0,0.01051933]
[1768646970739,0.01051889,95067.0,95063.0,0.01051933]
[1768646970965,0.01051878,95068.0,95063.0,0.01051933]
[1768646971180,0.010519,95066.0,95062.0,0.01051945]
[1768646971757,0.010519,95066.0,95061.0,0.01051956]
[1768646972833,0.01051911,95065.0,95061.0,0.01051956]
[1768646974648,0.01051889,95067.0,95062.0,0.01051945]
[1768646975066,0.010519,95066.0,95062.0,0.01051945]
[1768646977194,0.01051878,95068.0,95063.0,0.01051933]
[1768646979567,0.01051889,95067.0,95063.0,0.01051933]
[1768646981020,0.01051878,95068.0,95063.0,0.01051933]
[1768646982008,0.01051878,95068.0,95064.0,0.01051922]
[1768646986597,0.01051878,95068.0,95063.0,0.01051933]
[1768646987014,0.01051889,95067.0,95061.0,0.01051956]
[1768646987438,0.06311383,95067.0,95061.0,0.01051956]
[1768646988273,0.01051911,95065.0,95061.0,0.01051956]
[1768646988476,0.00517786,95065.0,95061.0,0.01051956]
[1768646993052,0.010519,95066.0,95062.0,0.01051945]
[1768646995899,0.01051911,95065.0,95060.0,0.01051967]
[1768646996677,0.00509541,95065.0,95060.0,0.01051967]
[1768646997511,0.00509541,95065.0,95061.0,0.01051956]
[1768646999266,0.01051922,95064.0,95060.0,0.01051967]
[1768647000966,0.01051922,95064.0,95059.0,0.01051978]
[1768647001193,0.01051922,95064.0,95056.0,0.06312045]
[1768647001194,0.01051945,95062.0,95056.0,0.01052011]
[1768647001401,0.01051956,95061.0,95057.0,0.01052]
[1768647001849,0.01051945,95062.0,95058.0,0.01051989]
[1768647002062,0.01051933,95063.0,95058.0,0.01051989]
[1768647002706,0.01051945,95062.0,95058.0,0.01051989]
[1768647004487,0.01033379,95063.0,95058.0,0.01051989]
[1768647004699,0.06293067,95063.0,95058.0,0.01051989]
[1768647005053,0.01033379,95063.0,95058.0,0.01051989]
[1768647005268,0.01051945,95062.0,95058.0,0.01051989]
[1768647005473,0.01051945,95062.0,95057.0,0.01052]
[1768647005901,0.01051945,95062.0,95058.0,0.01051989]
[1768647006454,0.01051911,95065.0,95061.0,0.01051956]
[1768647007103,0.010519,95066.0,95061.0,0.01051956]
[1768647008537,0.010519,95066.0,95062.0,0.01051945]
[1768647009893,0.01051889,95067.0,95062.0,0.01051945]
[1768647010933,0.010519,95066.0,95062.0,0.01051945]
[1768647011156,0.01051889,95067.0,95062.0,0.01051945]
[1768647012729,0.010519,95066.0,95062.0,0.01051945]
[1768647013047,0.010519,95066.0,95061.0,0.01051956]
[1768647013654,0.010519,95066.0,95062.0,0.01051945]
[1768647015185,0.01051889,95067.0,95062.0,0.01051945]
[1768647015392,0.01051889,95067.0,95063.0,0.01051933]
[1768647015894,0.01051911,95065.0,95060.0,0.01051967]
[1768647016109,0.01051911,95065.0,95061.0,0.01051956]
[1768647016334,0.010519,95066.0,95061.0,0.01051956]
[1768647016655,0.01051922,95064.0,95059.0,0.01051978]
[1768647017062,0.01051922,95064.0,95060.0,0.01051967]
[1768647017271,0.010519,95066.0,95061.0,0.01051956]
[1768647017715,0.010519,95066.0,95062.0,0.01051945]
[1768647017892,0.01051889,95067.0,95062.0,0.01051945]
[1768647018425,0.01051889,95067.0,95063.0,0.01051933]
[1768647018989,0.01051878,95068.0,95064.0,0.01051922]
[1768647019766,0.01051889,95067.0,95062.0,0.01051945]
[1768647019917,0.010519,95066.0,95062.0,0.01051945]
[1768647020331,0.010519,95066.0,95061.0,0.01051956]
[1768647020537,0.010519,95066.0,95062.0,0.01051945]
[1768647020742,0.01051911,95065.0,95060.0,0.01051967]
[1768647021333,0.01051911,95065.0,95058.0,0.01051989]
[1768647021512,0.01051922,95064.0,95060.0,0.01051967]
[1768647022025,0.010519,95066.0,95061.0,0.01051956]
[1768647022629,0.010519,95066.0,95062.0,0.01051945]
[1768647023396,0.06311476,95065.0,95060.0,0.01051967]
[1768647023558,0.01051911,95065.0,95060.0,0.01051967]
[1768647023762,0.010519,95066.0,95061.0,0.01051956]
[1768647023993,0.010519,95066.0,95062.0,0.01051945]
[1768647026949,0.01051911,95065.0,95060.0,0.01051967]
[1768647027079,0.01051911,95065.0,95061.0,0.01051956]
[1768647027738,0.010519,95066.0,95062.0,0.01051945]
[1768647029905,0.010519,95066.0,95061.0,0.01051956]
[1768647030116,0.01051911,95065.0,95061.0,0.01051956]
[1768647030545,0.010519,95066.0,95061.0,0.01051956]
[1768647031394,0.01051911,95065.0,95061.0,0.01051956]
[1768647033334,0.01051911,95065.0,95060.0,0.01051967]
[1768647033579,0.010519,95066.0,95061.0,0.01051956]
[1768647033888,0.01051911,95065.0,95060.0,0.01051967]
[1768647034046,0.01051911,95065.0,95061.0,0.01051956]
[1768647034895,0.010519,95066.0,95062.0,0.01051945]
[1768647035097,0.01262185,95066.0,95052.0,0.01052055]
[1768647035276,0.01051978,95059.0,95054.0,0.13796033]
[1768647035477,0.00878233,95059.0,95054.0,0.13796033]
[1768647036156,0.00878233,95059.0,95055.0,0.01052022]
[1768647036363,0.01051967,95060.0,95055.0,0.01052022]
[1768647036571,0.01051967,95060.0,95056.0,0.01052011]
[1768647036991,0.01051945,95062.0,95057.0,0.01052]
[1768647037199,0.01051956,95061.0,95057.0,0.01052]
[1768647038309,0.01051945,95062.0,95057.0,0.01052]
[1768647038558,0.01051956,95061.0,95057.0,0.01052]
[1768647039642,0.01051945,95062.0,95057.0,0.01052]
[1768647039858,0.01051945,95062.0,95058.0,0.01051989]
[1768647045456,0.01051933,95063.0,95058.0,0.01051989]
[1768647045887,0.01051945,95062.0,95058.0,0.01051989]
[1768647047440,0.01051933,95063.0,95058.0,0.01051989]
[1768647048066,0.01051933,95063.0,95059.0,0.01051978]
[1768647048274,0.01051933,95063.0,95058.0,0.01051989]
[1768647049116,0.01051945,95062.0,95058.0,0.01051989]
[1768647049322,0.01051933,95063.0,95058.0,0.01051989]
[1768647050454,0.01051922,95064.0,95059.0,0.01051978]
[1768647050669,0.01051933,95063.0,95059.0,0.01051978]
[1768647051723,0.01051945,95062.0,95058.0,0.01051989]
[1768647053635,0.01051933,95063.0,95058.0,0.01051989]
[1768647055643,0.01051933,95063.0,95059.0,0.01051978]
[1768647057577,0.01051933,95063.0,95058.0,0.01051989]
[1768647057794,0.01051945,95062.0,95058.0,0.01051989]
[1768647057995,0.01051945,95062.0,95057.0,0.01052]
[1768647059925,0.01051956,95061.0,95057.0,0.01052]
[1768647062374,0.01051945,95062.0,95057.0,0.01052]
[1768647062575,0.01051956,95061.0,95057.0,0.01052]
[1768647062994,0.01051956,95061.0,95056.0,0.01052011]
[1768647063699,0.01051945,95062.0,95057.0,0.01052]
[1768647063896,0.06311743,95061.0,95056.0,0.01052011]
[1768647064503,0.01051956,95061.0,95056.0,0.01052011]
[1768647065226,0.01051967,95060.0,95056.0,0.01052011]
[1768647065428,0.05802272,95060.0,95056.0,0.01052011]
[1768647066194,0.01051967,95060.0,95056.0,0.01052011]
[1768647068307,0.01051978,95059.0,95055.0,0.01052022]
[1768647068485,0.00988278,95059.0,95055.0,0.01052022]
[1768647070761,0.01051967,95060.0,95055.0,0.01052022]
[1768647070988,0.01051956,95061.0,95056.0,0.01052011]
[1768647071566,0.01051956,95061.0,95057.0,0.01052]
[1768647071771,0.01051956,95061.0,95054.0,0.13796033]
[1768647071772,0.01051978,95059.0,95054.0,0.13796033]
[1768647071977,0.01051989,95058.0,95054.0,0.13796033]
[1768647072167,0.01051978,95059.0,95058.0,0.00289716]
[1768647075420,0.01051967,95060.0,95058.0,0.00289716]
[1768647075625,0.01051967,95060.0,95056.0,0.00815795]
[1768647079095,0.01051978,95059.0,95055.0,0.01052022]
[1768647079297,0.01051967,95060.0,95056.0,0.01052011]
[1768647085855,0.01051967,95060.0,95055.0,0.01052022]
[1768647086056,0.01051956,95061.0,95056.0,0.01052011]
[1768647086370,0.01051967,95060.0,95056.0,0.01052011]
[1768647086572,0.01051956,95061.0,95056.0,0.01052011]
[1768647086753,0.01051967,95060.0,95056.0,0.01052011]
[1768647088616,0.01051967,95060.0,95056.0,0.01032422]
[1768647088818,0.01051967,95060.0,95055.0,0.01052022]
[1768647090316,0.01051967,95060.0,95056.0,0.01052011]
[1768647091278,0.01051956,95061.0,95057.0,0.01052]
[1768647091871,0.01051956,95061.0,95056.0,0.01052011]
[1768647092283,0.01051956,95061.0,95057.0,0.01052]
[1768647093476,0.01051945,95062.0,95057.0,0.01052]
[1768647093973,0.01051956,95061.0,95057.0,0.01052]
[1768647094104,0.01051945,95062.0,95058.0,0.01051989]
[1768647094911,0.01051956,95061.0,95057.0,0.01052]
[1768647095107,0.01051945,95062.0,95058.0,0.01051989]
[1768647096274,0.01051945,95062.0,95057.0,0.01052]
[1768647096478,0.01051956,95061.0,95057.0,0.01052]
[1768647097099,0.01051945,95062.0,95057.0,0.01052]
[1768647097501,0.01051945,95062.0,95058.0,0.01051989]
[1768647099163,0.01051956,95061.0,95057.0,0.01052]
[1768647105359,0.01051945,95062.0,95058.0,0.01051989]
[1768647107376,0.01051922,95064.0,95059.0,0.01051978]
[1768647107799,0.01051922,95064.0,95060.0,0.01051967]
[1768647110329,0.01051911,95065.0,95060.0,0.01051967]
[1768647110584,0.01051922,95064.0,95060.0,0.01051967]
[1768647110784,0.01051911,95065.0,95060.0,0.01051967]
[1768647111524,0.01051922,95064.0,95060.0,0.01051967]
[1768647112988,0.01051933,95063.0,95059.0,0.01051978]
[1768647115848,0.01051933,95063.0,95058.0,0.01051989]
[1768647116153,0.01051956,95061.0,95055.0,0.01052022]
[1768647116360,0.01051967,95060.0,95056.0,0.01052011]
[1768647118219,0.01051978,95059.0,95055.0,0.01052022]
[1768647121345,0.01051967,95060.0,95055.0,0.01052022]
[1768647121703,0.01051967,95060.0,95056.0,0.01052011]
[1768647122166,0.01051978,95059.0,95054.0,0.13796033]
[1768647122372,0.01051989,95058.0,95054.0,0.12744]
[1768647122778,0.01051978,95059.0,95054.0,0.13796033]
[1768647123016,0.01051978,95059.0,95046.0,8.381e-05]
[1768647123017,0.03776354,95089.0,95046.0,8.381e-05]
[1768647123018,0.05260444,95049.0,95046.0,8.381e-05]
[1768647123269,0.06317266,95049.0,95046.0,8.381e-05]
[1768647123452,0.01056822,95049.0,95046.0,8.381e-05]
[1768647124334,4.734e-05,95049.0,95046.0,0.01060503]
[1768647124748,0.01056822,95049.0,95046.0,8.381e-05]
[1768647124958,4.734e-05,95049.0,95046.0,8.381e-05]
[1768647125362,4.734e-05,95049.0,95046.0,0.01060503]
[1768647126181,4.734e-05,95049.0,95046.0,0.06321104]
[1768647127195,4.734e-05,95049.0,95046.0,0.01060503]
[1768647127534,0.01052077,95050.0,95046.0,0.01060503]
[1768647127711,0.01052088,95049.0,95046.0,0.00017825]
[1768647128158,0.01052077,95050.0,95046.0,0.00017825]
[1768647128358,0.01052088,95049.0,95046.0,0.00017825]
[1768647128898,0.01052077,95050.0,95046.0,0.01069947]
[1768647129055,0.06312532,95049.0,95046.0,0.00017825]
[1768647129254,0.01052088,95049.0,95046.0,0.00017825]
[1768647131079,0.01052077,95050.0,95046.0,0.00017825]
[1768647132370,0.01052077,95050.0,95046.0,0.01069947]
[1768647132587,0.01052088,95049.0,95046.0,0.00017825]
[1768647135840,0.05260524,95048.0,95046.0,0.00017825]
[1768647136291,0.01052088,95049.0,95046.0,0.00017825]
[1768647136485,0.05260499,95048.0,95046.0,0.00017825]
[1768647136944,0.01052088,95049.0,95046.0,0.00017825]
[1768647137592,0.05260499,95048.0,95046.0,0.00017825]
[1768647139706,0.06312548,95049.0,95046.0,0.00017825]
[1768647140465,0.01052088,95049.0,95046.0,0.00017825]